[Event "Late-Titled-Tuesday-Blitz-April-16-2024"]
[Site "Chess.com"]
[Date "2024.04.16"]
[Round "5"]
[White "Msb2"]
[Black "AlexeiShirov"]
[Result "1/2-1/2"]
[WhiteElo "3016"]
[BlackElo "2820"]
[TimeControl "180+1"]
[EndTime "14:55:40 PDT"]
[Termination "Game drawn by stalemate"]

1. d4 {[%clk 0:03:00.9]} 1... d5 {[%clk 0:03:00]} 2. c4 {[%clk 0:03:00.6]} 2...
c6 {[%clk 0:02:59.5]} 3. Nf3 {[%clk 0:03:01.3]} 3... Nf6 {[%clk 0:02:59.6]} 4.
Nc3 {[%clk 0:03:02.1]} 4... e6 {[%clk 0:02:59.2]} 5. Qc2 {[%clk 0:03:02.8]} 5...
Nbd7 {[%clk 0:02:47.6]} 6. cxd5 {[%clk 0:03:02.9]} 6... exd5 {[%clk 0:02:47]} 7.
Bg5 {[%clk 0:03:03.6]} 7... h6 {[%clk 0:02:42.7]} 8. Bh4 {[%clk 0:03:03.2]} 8...
Be7 {[%clk 0:02:41.9]} 9. e3 {[%clk 0:03:03.2]} 9... O-O {[%clk 0:02:39.9]} 10.
Bd3 {[%clk 0:03:03.5]} 10... Re8 {[%clk 0:02:37.3]} 11. O-O {[%clk 0:03:02.4]}
11... Ne4 {[%clk 0:02:35.7]} 12. Bxe4 {[%clk 0:02:59.8]} 12... Bxh4 {[%clk
0:02:34]} 13. Bh7+ {[%clk 0:02:58.5]} 13... Kh8 {[%clk 0:02:32.2]} 14. Bd3
{[%clk 0:02:57.1]} 14... Bf6 {[%clk 0:02:29.7]} 15. h3 {[%clk 0:02:46.8]} 15...
Nb6 {[%clk 0:02:26]} 16. Rfe1 {[%clk 0:02:42.1]} 16... Be6 {[%clk 0:02:24.2]}
17. Rad1 {[%clk 0:02:21.8]} 17... Qd7 {[%clk 0:02:21.6]} 18. Ne5 {[%clk
0:02:18.6]} 18... Bxe5 {[%clk 0:02:05.2]} 19. dxe5 {[%clk 0:02:19.5]} 19... Rad8
{[%clk 0:02:03.6]} 20. f4 {[%clk 0:02:16.9]} 20... f6 {[%clk 0:02:02.1]} 21. f5
{[%clk 0:02:11.9]} 21... Bg8 {[%clk 0:02:01.7]} 22. e6 {[%clk 0:02:10.9]} 22...
Qc7 {[%clk 0:02:01.8]} 23. Ne2 {[%clk 0:02:08.3]} 23... c5 {[%clk 0:01:58.6]}
24. Nf4 {[%clk 0:02:05.8]} 24... Bh7 {[%clk 0:01:56.4]} 25. Be2 {[%clk
0:01:59.3]} 25... Qe5 {[%clk 0:01:52.7]} 26. Bh5 {[%clk 0:01:35.4]} 26... Bxf5
{[%clk 0:01:50.1]} 27. Qxc5 {[%clk 0:01:35.6]} 27... Rc8 {[%clk 0:01:42]} 28.
Qd4 {[%clk 0:01:27.2]} 28... Re7 {[%clk 0:01:37]} 29. Bf7 {[%clk 0:00:55.6]}
29... g5 {[%clk 0:01:27.9]} 30. Qxe5 {[%clk 0:00:55.6]} 30... fxe5 {[%clk
0:01:25.4]} 31. Nxd5 {[%clk 0:00:56.3]} 31... Nxd5 {[%clk 0:01:23.4]} 32. Rxd5
{[%clk 0:00:57.2]} 32... Bxe6 {[%clk 0:01:21.2]} 33. Rxe5 {[%clk 0:00:57.7]}
33... Rxf7 {[%clk 0:01:19.7]} 34. Rxe6 {[%clk 0:00:58]} 34... Rc2 {[%clk
0:01:16.8]} 35. Rf1 {[%clk 0:00:38.1]} 35... Rxf1+ {[%clk 0:01:01.8]} 36. Kxf1
{[%clk 0:00:39]} 36... Rxb2 {[%clk 0:01:01.7]} 37. Rxh6+ {[%clk 0:00:39.3]}
37... Kg7 {[%clk 0:01:01.8]} 38. Rd6 {[%clk 0:00:40]} 38... Rxa2 {[%clk
0:00:49.2]} 39. Rd7+ {[%clk 0:00:40.4]} 39... Kf6 {[%clk 0:00:49]} 40. Rxb7
{[%clk 0:00:41.3]} 40... a5 {[%clk 0:00:48.7]} 41. Rb5 {[%clk 0:00:34.1]} 41...
a4 {[%clk 0:00:46.9]} 42. Ra5 {[%clk 0:00:34.5]} 42... a3 {[%clk 0:00:42.4]} 43.
Kg1 {[%clk 0:00:33.4]} 43... Ra1+ {[%clk 0:00:36.6]} 44. Kh2 {[%clk 0:00:33.6]}
44... a2 {[%clk 0:00:35.3]} 45. Kg3 {[%clk 0:00:33.7]} 45... Re1 {[%clk
0:00:32.7]} 46. Ra6+ {[%clk 0:00:26.4]} 46... Kf5 {[%clk 0:00:31.6]} 47. Ra5+
{[%clk 0:00:26.7]} 47... Kf6 {[%clk 0:00:31.3]} 48. Rxa2 {[%clk 0:00:27.6]}
48... Rxe3+ {[%clk 0:00:30.7]} 49. Kg4 {[%clk 0:00:27.6]} 49... Re4+ {[%clk
0:00:30.7]} 50. Kf3 {[%clk 0:00:28.2]} 50... Rb4 {[%clk 0:00:30]} 51. Ra3 {[%clk
0:00:26.6]} 51... Kf5 {[%clk 0:00:29.8]} 52. Kg3 {[%clk 0:00:26.2]} 52... Kg6
{[%clk 0:00:29.5]} 53. Re3 {[%clk 0:00:26.2]} 53... Ra4 {[%clk 0:00:28.7]} 54.
Rd3 {[%clk 0:00:25.5]} 54... Rb4 {[%clk 0:00:28.8]} 55. Kf3 {[%clk 0:00:25.9]}
55... Ra4 {[%clk 0:00:29]} 56. Re3 {[%clk 0:00:26.5]} 56... Rb4 {[%clk
0:00:29.3]} 57. Re4 {[%clk 0:00:27.1]} 57... Rb2 {[%clk 0:00:28.5]} 58. Rc4
{[%clk 0:00:23.9]} 58... Kf5 {[%clk 0:00:27.1]} 59. Rc5+ {[%clk 0:00:22.4]}
59... Kf6 {[%clk 0:00:26.9]} 60. g3 {[%clk 0:00:20.9]} 60... Rb4 {[%clk
0:00:27]} 61. Ra5 {[%clk 0:00:20.5]} 61... Kg6 {[%clk 0:00:27.1]} 62. Re5 {[%clk
0:00:20.8]} 62... Kf6 {[%clk 0:00:27.4]} 63. Re4 {[%clk 0:00:21.1]} 63... Rb6
{[%clk 0:00:24.6]} 64. Kg4 {[%clk 0:00:21.5]} 64... Kg6 {[%clk 0:00:24.9]} 65.
Rd4 {[%clk 0:00:22]} 65... Ra6 {[%clk 0:00:25]} 66. Rb4 {[%clk 0:00:22.5]} 66...
Rc6 {[%clk 0:00:25]} 67. Ra4 {[%clk 0:00:23.1]} 67... Rb6 {[%clk 0:00:25.3]} 68.
Re4 {[%clk 0:00:19.4]} 68... Ra6 {[%clk 0:00:25.5]} 69. Kf3 {[%clk 0:00:19.3]}
69... Ra3+ {[%clk 0:00:25.3]} 70. Re3 {[%clk 0:00:19.9]} 70... Ra4 {[%clk
0:00:25.6]} 71. Rb3 {[%clk 0:00:20.5]} 71... g4+ {[%clk 0:00:25]} 72. hxg4
{[%clk 0:00:21.4]} 72... Rc4 {[%clk 0:00:25.1]} 73. Rb6+ {[%clk 0:00:21.4]}
73... Kg5 {[%clk 0:00:24.7]} 74. Rb5+ {[%clk 0:00:22.3]} 74... Kg6 {[%clk
0:00:25]} 75. g5 {[%clk 0:00:21.3]} 75... Ra4 {[%clk 0:00:24.4]} 76. Kg2 {[%clk
0:00:21.3]} 76... Rc4 {[%clk 0:00:24.2]} 77. Kh3 {[%clk 0:00:21.9]} 77... Ra4
{[%clk 0:00:23.8]} 78. Rc5 {[%clk 0:00:21.8]} 78... Rb4 {[%clk 0:00:23.6]} 79.
Ra5 {[%clk 0:00:22.2]} 79... Rc4 {[%clk 0:00:23.6]} 80. Rd5 {[%clk 0:00:22.1]}
80... Rb4 {[%clk 0:00:23.8]} 81. Re5 {[%clk 0:00:16.9]} 81... Rc4 {[%clk
0:00:24]} 82. Re8 {[%clk 0:00:17.3]} 82... Kxg5 {[%clk 0:00:23.4]} 83. Rg8+
{[%clk 0:00:17.8]} 83... Kh5 {[%clk 0:00:23.4]} 84. Rh8+ {[%clk 0:00:18]} 84...
Kg5 {[%clk 0:00:23.3]} 85. Rg8+ {[%clk 0:00:18.1]} 85... Kh5 {[%clk 0:00:23.6]}
86. Rb8 {[%clk 0:00:18.8]} 86... Kg5 {[%clk 0:00:23.7]} 87. Rb5+ {[%clk
0:00:18.9]} 87... Kg6 {[%clk 0:00:23.8]} 88. Re5 {[%clk 0:00:19.5]} 88... Rb4
{[%clk 0:00:23.8]} 89. Kg2 {[%clk 0:00:19.8]} 89... Rb3 {[%clk 0:00:23.7]} 90.
Kh3 {[%clk 0:00:19.5]} 90... Rb4 {[%clk 0:00:23.9]} 91. Re3 {[%clk 0:00:20.2]}
91... Ra4 {[%clk 0:00:23.9]} 92. Rf3 {[%clk 0:00:20.8]} 92... Rb4 {[%clk
0:00:24.2]} 93. g4 {[%clk 0:00:21]} 93... Ra4 {[%clk 0:00:24.5]} 94. Kh4 {[%clk
0:00:21.6]} 94... Ra5 {[%clk 0:00:24.8]} 95. Rb3 {[%clk 0:00:21.7]} 95... Kg7
{[%clk 0:00:24.7]} 96. Rb7+ {[%clk 0:00:22]} 96... Kg6 {[%clk 0:00:24]} 97. Rb6+
{[%clk 0:00:22.9]} 97... Kg7 {[%clk 0:00:23.6]} 98. Rc6 {[%clk 0:00:23.8]} 98...
Kh7 {[%clk 0:00:23.7]} 99. Rf6 {[%clk 0:00:22.6]} 99... Kg7 {[%clk 0:00:24]}
100. Rd6 {[%clk 0:00:21.4]} 100... Kh7 {[%clk 0:00:24.2]} 101. Rd7+ {[%clk
0:00:21]} 101... Kg6 {[%clk 0:00:24.3]} 102. Rc7 {[%clk 0:00:21.8]} 102... Kh6
{[%clk 0:00:24.2]} 103. Rb7 {[%clk 0:00:22.1]} 103... Kg6 {[%clk 0:00:24.5]}
104. Rb4 {[%clk 0:00:22]} 104... Kh6 {[%clk 0:00:24.5]} 105. Rf4 {[%clk
0:00:21.6]} 105... Kg6 {[%clk 0:00:24.7]} 106. Rd4 {[%clk 0:00:21.8]} 106... Kh6
{[%clk 0:00:24.9]} 107. Rd6+ {[%clk 0:00:22.5]} 107... Kg7 {[%clk 0:00:24.8]}
108. g5 {[%clk 0:00:23.3]} 108... Ra1 {[%clk 0:00:23.4]} 109. Rd7+ {[%clk
0:00:23.2]} 109... Kg6 {[%clk 0:00:23.5]} 110. Rd6+ {[%clk 0:00:24.1]} 110...
Kg7 {[%clk 0:00:23.8]} 111. Rd4 {[%clk 0:00:23.1]} 111... Rh1+ {[%clk
0:00:23.7]} 112. Kg4 {[%clk 0:00:23.7]} 112... Rg1+ {[%clk 0:00:24.2]} 113. Kf5
{[%clk 0:00:24.3]} 113... Rf1+ {[%clk 0:00:24.7]} 114. Rf4 {[%clk 0:00:24.6]}
114... Rxf4+ {[%clk 0:00:24.5]} 115. Kxf4 {[%clk 0:00:25.5]} 115... Kg6 {[%clk
0:00:24.6]} 116. Kg4 {[%clk 0:00:26.4]} 116... Kg7 {[%clk 0:00:24.8]} 117. Kf5
{[%clk 0:00:27.3]} 117... Kf7 {[%clk 0:00:24.8]} 118. g6+ {[%clk 0:00:28.2]}
118... Kg7 {[%clk 0:00:24.9]} 119. Kg5 {[%clk 0:00:29.1]} 119... Kg8 {[%clk
0:00:25.1]} 120. Kh5 {[%clk 0:00:30]} 120... Kg7 {[%clk 0:00:25]} 121. Kg5
{[%clk 0:00:30.8]} 121... Kg8 {[%clk 0:00:25.3]} 122. Kf6 {[%clk 0:00:31.7]}
122... Kf8 {[%clk 0:00:25.4]} 123. g7+ {[%clk 0:00:32.6]} 123... Kg8 {[%clk
0:00:25.6]} 124. Kg6 {[%clk 0:00:33.5]} 1/2-1/2

[Event "Late-Titled-Tuesday-Blitz-April-16-2024"]
[Site "Chess.com"]
[Date "2024.04.16"]
[Round "5"]
[White "Charodej1"]
[Black "VinzentSpitzl"]
[Result "1/2-1/2"]
[WhiteElo "2314"]
[BlackElo "2472"]
[TimeControl "180+1"]
[EndTime "14:55:49 PDT"]
[Termination "Game drawn - insufficient material"]

1. d4 {[%clk 0:03:00.9]} 1... Nf6 {[%clk 0:02:59.6]} 2. Nf3 {[%clk 0:03:00.7]}
2... d5 {[%clk 0:02:59]} 3. g3 {[%clk 0:02:59.2]} 3... e6 {[%clk 0:02:58.8]} 4.
Bg2 {[%clk 0:02:59.6]} 4... Be7 {[%clk 0:02:56.9]} 5. O-O {[%clk 0:02:59.6]}
5... O-O {[%clk 0:02:57.5]} 6. c4 {[%clk 0:02:59.7]} 6... dxc4 {[%clk
0:02:57.7]} 7. Qa4 {[%clk 0:02:55.8]} 7... a6 {[%clk 0:02:57.9]} 8. Qxc4 {[%clk
0:02:55.9]} 8... b5 {[%clk 0:02:58.2]} 9. Qc2 {[%clk 0:02:56.3]} 9... Bb7 {[%clk
0:02:58.5]} 10. Rd1 {[%clk 0:02:53.9]} 10... Be4 {[%clk 0:02:54.1]} 11. Qd2
{[%clk 0:02:51.1]} 11... b4 {[%clk 0:02:44.1]} 12. b3 {[%clk 0:02:27]} 12...
Nbd7 {[%clk 0:02:37.1]} 13. Bb2 {[%clk 0:02:25.9]} 13... c5 {[%clk 0:02:36.4]}
14. dxc5 {[%clk 0:01:50.2]} 14... Nxc5 {[%clk 0:02:36]} 15. Qe1 {[%clk
0:01:50.2]} 15... Qb6 {[%clk 0:02:28.5]} 16. Nbd2 {[%clk 0:01:49.3]} 16... Bd5
{[%clk 0:02:22.7]} 17. Bd4 {[%clk 0:01:42.3]} 17... Qb7 {[%clk 0:02:22.1]} 18.
Rac1 {[%clk 0:01:36.5]} 18... Rac8 {[%clk 0:02:22.2]} 19. Nc4 {[%clk 0:01:36.4]}
19... Rfd8 {[%clk 0:02:17.3]} 20. Nh4 {[%clk 0:01:03.4]} 20... h6 {[%clk
0:02:04.8]} 21. Bxd5 {[%clk 0:01:01.4]} 21... Nxd5 {[%clk 0:02:01.9]} 22. Nf3
{[%clk 0:00:55.3]} 22... Ne4 {[%clk 0:02:01.9]} 23. Rc2 {[%clk 0:00:39.9]} 23...
Nec3 {[%clk 0:01:56.3]} 24. Rdc1 {[%clk 0:00:40]} 24... Qb5 {[%clk 0:01:41.2]}
25. e4 {[%clk 0:00:40]} 25... Nf6 {[%clk 0:01:36.2]} 26. Bxc3 {[%clk 0:00:40.2]}
26... bxc3 {[%clk 0:01:34.6]} 27. Qxc3 {[%clk 0:00:40]} 27... Nxe4 {[%clk
0:01:33.9]} 28. Qe3 {[%clk 0:00:40.3]} 28... Qf5 {[%clk 0:01:27]} 29. Re1 {[%clk
0:00:38.1]} 29... Nc5 {[%clk 0:01:24.6]} 30. Rd2 {[%clk 0:00:36.1]} 30... Rxd2
{[%clk 0:01:17.1]} 31. Nfxd2 {[%clk 0:00:37]} 31... Nd3 {[%clk 0:01:13.3]} 32.
Rf1 {[%clk 0:00:33]} 32... Bc5 {[%clk 0:01:12.4]} 33. Qe2 {[%clk 0:00:27.1]}
33... Rd8 {[%clk 0:01:09.9]} 34. Kg2 {[%clk 0:00:26.9]} 34... e5 {[%clk
0:00:58]} 35. Ne4 {[%clk 0:00:26.8]} 35... Ba7 {[%clk 0:00:50.7]} 36. Qf3 {[%clk
0:00:22.4]} 36... Qxf3+ {[%clk 0:00:45.4]} 37. Kxf3 {[%clk 0:00:22.7]} 37... Nb4
{[%clk 0:00:45.8]} 38. Ned6 {[%clk 0:00:17.3]} 38... Nxa2 {[%clk 0:00:40.8]} 39.
Ra1 {[%clk 0:00:16.4]} 39... Nb4 {[%clk 0:00:39.3]} 40. Ra4 {[%clk 0:00:16.1]}
40... Bc5 {[%clk 0:00:39.4]} 41. Nb7 {[%clk 0:00:16.1]} 41... Rd3+ {[%clk
0:00:38.6]} 42. Ke2 {[%clk 0:00:16.7]} 42... Rxb3 {[%clk 0:00:24.5]} 43. Nxc5
{[%clk 0:00:16.6]} 43... Rb1 {[%clk 0:00:25.1]} 44. Nxe5 {[%clk 0:00:15.5]}
44... Nd5 {[%clk 0:00:22.5]} 45. Rxa6 {[%clk 0:00:13.8]} 45... Rb2+ {[%clk
0:00:22.6]} 46. Kf3 {[%clk 0:00:13.9]} 46... f6 {[%clk 0:00:19.7]} 47. Ned3
{[%clk 0:00:13.9]} 47... Rc2 {[%clk 0:00:18.7]} 48. Rd6 {[%clk 0:00:13.5]} 48...
Nc3 {[%clk 0:00:18]} 49. Kg2 {[%clk 0:00:13.2]} 49... Nd1 {[%clk 0:00:16.4]} 50.
h4 {[%clk 0:00:12.5]} 50... Ne3+ {[%clk 0:00:15.5]} 51. Kf3 {[%clk 0:00:12.3]}
51... Nf5 {[%clk 0:00:15.2]} 52. Rd8+ {[%clk 0:00:12.5]} 52... Kh7 {[%clk
0:00:15.2]} 53. h5 {[%clk 0:00:13.1]} 53... Rc3 {[%clk 0:00:12.6]} 54. Ke4
{[%clk 0:00:13.3]} 54... Ne7 {[%clk 0:00:11.7]} 55. Rd7 {[%clk 0:00:13.1]} 55...
Nc6 {[%clk 0:00:11.8]} 56. Rd6 {[%clk 0:00:13.5]} 56... Na5 {[%clk 0:00:08.5]}
57. g4 {[%clk 0:00:12.5]} 57... Rc4+ {[%clk 0:00:08.3]} 58. Rd4 {[%clk
0:00:13.1]} 58... Rc2 {[%clk 0:00:08.7]} 59. Ke3 {[%clk 0:00:12.1]} 59... Nc4+
{[%clk 0:00:08.8]} 60. Ke4 {[%clk 0:00:11.9]} 60... Nd2+ {[%clk 0:00:08.9]} 61.
Kf4 {[%clk 0:00:12.5]} 61... Nf1 {[%clk 0:00:08.4]} 62. Ne4 {[%clk 0:00:11.4]}
62... Nh2 {[%clk 0:00:06.2]} 63. Ng3 {[%clk 0:00:09.8]} 63... Ra2 {[%clk
0:00:05.3]} 64. Re4 {[%clk 0:00:09.8]} 64... Ra7 {[%clk 0:00:05.5]} 65. Re1
{[%clk 0:00:09.9]} 65... Ra4+ {[%clk 0:00:04.7]} 66. Ke3 {[%clk 0:00:09.4]}
66... Nxg4+ {[%clk 0:00:04.5]} 67. Kd2 {[%clk 0:00:09.9]} 67... Rd4 {[%clk
0:00:03.4]} 68. Re4 {[%clk 0:00:09.8]} 68... Rxe4 {[%clk 0:00:02.8]} 69. Nxe4
{[%clk 0:00:10.7]} 69... f5 {[%clk 0:00:02.9]} 70. Ng3 {[%clk 0:00:10.5]} 70...
Nf6 {[%clk 0:00:03.5]} 71. Nxf5 {[%clk 0:00:10.7]} 71... Nxh5 {[%clk 0:00:03.6]}
72. Ke2 {[%clk 0:00:11.2]} 72... Nf6 {[%clk 0:00:04.1]} 73. f4 {[%clk
0:00:11.2]} 73... Nh5 {[%clk 0:00:03.5]} 74. Kf3 {[%clk 0:00:11.4]} 74... Nxf4
{[%clk 0:00:03.7]} 75. Nxf4 {[%clk 0:00:11.2]} 75... g5 {[%clk 0:00:04.6]} 76.
Nd3 {[%clk 0:00:11.5]} 76... Kg6 {[%clk 0:00:05]} 77. Ne3 {[%clk 0:00:11.5]}
77... h5 {[%clk 0:00:05.3]} 78. Ne5+ {[%clk 0:00:12]} 78... Kf6 {[%clk
0:00:05.3]} 79. Nc6 {[%clk 0:00:12.4]} 79... g4+ {[%clk 0:00:05.4]} 80. Kf4
{[%clk 0:00:12.8]} 80... Ke6 {[%clk 0:00:04.8]} 81. Nd4+ {[%clk 0:00:12.9]}
81... Kd6 {[%clk 0:00:04.8]} 82. Ndf5+ {[%clk 0:00:13.8]} 82... Ke6 {[%clk
0:00:05.1]} 83. Ng3 {[%clk 0:00:14.3]} 83... Kf6 {[%clk 0:00:05.4]} 84. Nxh5+
{[%clk 0:00:14.5]} 84... Ke6 {[%clk 0:00:05.2]} 85. Ng3 {[%clk 0:00:15.4]} 85...
Kf6 {[%clk 0:00:05.5]} 86. Nef5 {[%clk 0:00:16.3]} 86... Ke6 {[%clk 0:00:05.4]}
87. Ke4 {[%clk 0:00:16.9]} 87... Kf6 {[%clk 0:00:05.5]} 88. Kf4 {[%clk 0:00:17]}
88... Ke6 {[%clk 0:00:06.1]} 89. Nh5 {[%clk 0:00:17.5]} 89... Kd5 {[%clk
0:00:06.3]} 90. Nfg3 {[%clk 0:00:18]} 90... Kd4 {[%clk 0:00:06.3]} 91. Nf6
{[%clk 0:00:17.9]} 91... Kc5 {[%clk 0:00:06.6]} 92. Ke4 {[%clk 0:00:17.9]} 92...
Kd6 {[%clk 0:00:07.5]} 93. Nfh5 {[%clk 0:00:16.8]} 93... Ke6 {[%clk 0:00:08.4]}
94. Nf4+ {[%clk 0:00:17.1]} 94... Kd6 {[%clk 0:00:08.7]} 95. Nf5+ {[%clk
0:00:16.9]} 95... Kc5 {[%clk 0:00:08.9]} 96. Ng3 {[%clk 0:00:17.1]} 96... Kc4
{[%clk 0:00:08.8]} 97. Ke3 {[%clk 0:00:16.7]} 97... Kc5 {[%clk 0:00:09.7]} 98.
Kd3 {[%clk 0:00:17.1]} 98... Kd6 {[%clk 0:00:09.7]} 99. Kd4 {[%clk 0:00:17.8]}
99... Ke7 {[%clk 0:00:09.4]} 100. Ke5 {[%clk 0:00:18.3]} 100... Kd7 {[%clk
0:00:10.1]} 101. Nd5 {[%clk 0:00:17.7]} 101... Kc6 {[%clk 0:00:10.4]} 102. Ne4
{[%clk 0:00:16.4]} 102... g3 {[%clk 0:00:09.8]} 103. Ne3 {[%clk 0:00:13.3]}
103... g2 {[%clk 0:00:09.6]} 104. Nxg2 {[%clk 0:00:13.6]} 1/2-1/2

[Event "Late-Titled-Tuesday-Blitz-April-16-2024"]
[Site "Chess.com"]
[Date "2024.04.16"]
[Round "6"]
[White "Karacsonyi_Gellert"]
[Black "Mikhal867"]
[Result "0-1"]
[WhiteElo "2720"]
[BlackElo "2561"]
[TimeControl "180+1"]
[EndTime "14:59:03 PDT"]
[Termination "Mikhal867 won by resignation"]

1. e4 {[%clk 0:02:59.8]} 1... g6 {[%clk 0:02:58.8]} 2. h4 {[%clk 0:02:57]} 2...
d5 {[%clk 0:02:57.2]} 3. e5 {[%clk 0:02:54]} 3... h5 {[%clk 0:02:55.9]} 4. d4
{[%clk 0:02:53.4]} 4... Nh6 {[%clk 0:02:48.6]} 5. Nf3 {[%clk 0:02:53]} 5... Bg4
{[%clk 0:02:47.1]} 6. Be2 {[%clk 0:02:52.2]} 6... Bxf3 {[%clk 0:02:39]} 7. Bxf3
{[%clk 0:02:52.2]} 7... e6 {[%clk 0:02:37.8]} 8. Bg5 {[%clk 0:02:49.7]} 8... Be7
{[%clk 0:02:37.2]} 9. Bxe7 {[%clk 0:02:50]} 9... Qxe7 {[%clk 0:02:36.8]} 10. c3
{[%clk 0:02:50.7]} 10... c5 {[%clk 0:02:35]} 11. Nd2 {[%clk 0:02:49.8]} 11...
Nc6 {[%clk 0:02:34.3]} 12. Nb3 {[%clk 0:02:47.3]} 12... cxd4 {[%clk 0:02:30.5]}
13. cxd4 {[%clk 0:02:47.1]} 13... Nf5 {[%clk 0:02:29.3]} 14. g3 {[%clk
0:02:46.3]} 14... Qb4+ {[%clk 0:02:19.1]} 15. Qd2 {[%clk 0:02:43.2]} 15... Nfxd4
{[%clk 0:02:10.6]} 16. Qxb4 {[%clk 0:02:38.6]} 16... Nxf3+ {[%clk 0:02:07.1]}
17. Ke2 {[%clk 0:02:35.5]} 17... Nxb4 {[%clk 0:01:56.6]} 18. Kxf3 {[%clk
0:02:36]} 18... Nd3 {[%clk 0:01:56.3]} 19. Rhd1 {[%clk 0:02:30.9]} 19... Nxe5+
{[%clk 0:01:52.7]} 20. Kf4 {[%clk 0:02:31.5]} 20... Nc4 {[%clk 0:01:50.2]} 21.
Rac1 {[%clk 0:02:26.7]} 21... b6 {[%clk 0:01:42.6]} 22. Rc2 {[%clk 0:02:22]}
22... O-O {[%clk 0:01:39.8]} 23. Nd4 {[%clk 0:02:21.8]} 23... e5+ {[%clk
0:01:39.3]} 0-1

[Event "Late-Titled-Tuesday-Blitz-April-16-2024"]
[Site "Chess.com"]
[Date "2024.04.16"]
[Round "6"]
[White "Szachulec75"]
[Black "BenchGM"]
[Result "0-1"]
[WhiteElo "2101"]
[BlackElo "2311"]
[TimeControl "180+1"]
[EndTime "14:59:48 PDT"]
[Termination "BenchGM won by resignation"]

1. Nf3 {[%clk 0:02:47.3]} 1... Nf6 {[%clk 0:02:59.3]} 2. g3 {[%clk 0:02:44.9]}
2... d5 {[%clk 0:02:59.2]} 3. Bg2 {[%clk 0:02:45.8]} 3... e6 {[%clk 0:02:59.2]}
4. d3 {[%clk 0:02:45.9]} 4... Nc6 {[%clk 0:02:44.7]} 5. O-O {[%clk 0:02:46.8]}
5... Bc5 {[%clk 0:02:43.4]} 6. c3 {[%clk 0:02:43]} 6... a5 {[%clk 0:02:41]} 7.
a4 {[%clk 0:02:40.3]} 7... O-O {[%clk 0:02:39.3]} 8. Nbd2 {[%clk 0:02:40.7]}
8... e5 {[%clk 0:02:35.3]} 9. Qc2 {[%clk 0:02:40.6]} 9... h6 {[%clk 0:02:17.7]}
10. e4 {[%clk 0:02:36.9]} 10... d4 {[%clk 0:02:09.4]} 11. Nc4 {[%clk 0:02:34.7]}
11... Re8 {[%clk 0:02:02.5]} 12. h3 {[%clk 0:02:29.4]} 12... b6 {[%clk 0:01:47]}
13. Nfd2 {[%clk 0:02:29.6]} 13... Be6 {[%clk 0:01:31]} 14. Kh1 {[%clk
0:02:29.4]} 14... Qd7 {[%clk 0:01:26.9]} 15. Kh2 {[%clk 0:02:29.9]} 15... Rad8
{[%clk 0:01:25.9]} 16. f4 {[%clk 0:02:30.2]} 16... dxc3 {[%clk 0:01:22.7]} 17.
bxc3 {[%clk 0:02:26.1]} 17... exf4 {[%clk 0:01:19.4]} 18. gxf4 {[%clk
0:02:23.8]} 18... Qxd3 {[%clk 0:01:18.9]} 19. Qxd3 {[%clk 0:02:22.7]} 19... Rxd3
{[%clk 0:01:19]} 20. Nb2 {[%clk 0:02:18.8]} 20... Rxc3 {[%clk 0:01:11.1]} 21. e5
{[%clk 0:02:18.9]} 21... Bd5 {[%clk 0:00:59.2]} 22. Ne4 {[%clk 0:02:19.3]} 0-1

[Event "Late-Titled-Tuesday-Blitz-April-16-2024"]
[Site "Chess.com"]
[Date "2024.04.16"]
[Round "6"]
[White "IndianSchoolOfSuffering"]
[Black "Stanbad1"]
[Result "0-1"]
[WhiteElo "2436"]
[BlackElo "2630"]
[TimeControl "180+1"]
[EndTime "15:00:00 PDT"]
[Termination "Stanbad1 won by resignation"]

1. e4 {[%clk 0:03:00.9]} 1... e6 {[%clk 0:02:57.5]} 2. d4 {[%clk 0:03:00.2]}
2... d5 {[%clk 0:02:55.5]} 3. e5 {[%clk 0:02:59.5]} 3... c5 {[%clk 0:02:50.6]}
4. c3 {[%clk 0:02:59]} 4... Nc6 {[%clk 0:02:49.9]} 5. Nf3 {[%clk 0:02:58.9]}
5... Bd7 {[%clk 0:02:49.3]} 6. Be2 {[%clk 0:02:58.5]} 6... Nge7 {[%clk
0:02:46.5]} 7. Na3 {[%clk 0:02:57.2]} 7... cxd4 {[%clk 0:02:44.4]} 8. cxd4
{[%clk 0:02:56.6]} 8... Nf5 {[%clk 0:02:45.1]} 9. Nc2 {[%clk 0:02:55.6]} 9...
Be7 {[%clk 0:02:44]} 10. O-O {[%clk 0:02:54.7]} 10... O-O {[%clk 0:02:42.9]} 11.
a3 {[%clk 0:02:54.6]} 11... Rc8 {[%clk 0:02:42.1]} 12. b4 {[%clk 0:02:54.4]}
12... a6 {[%clk 0:02:42.3]} 13. Bb2 {[%clk 0:02:51.8]} 13... f6 {[%clk
0:02:42.4]} 14. exf6 {[%clk 0:02:48.3]} 14... Bxf6 {[%clk 0:02:43.3]} 15. Bd3
{[%clk 0:02:41]} 15... Be8 {[%clk 0:02:39.8]} 16. Ne5 {[%clk 0:02:32.6]} 16...
Bxe5 {[%clk 0:02:37.2]} 17. dxe5 {[%clk 0:02:30.9]} 17... Bg6 {[%clk 0:02:37.8]}
18. Rc1 {[%clk 0:02:27.1]} 18... Qg5 {[%clk 0:02:34.5]} 19. f4 {[%clk
0:02:23.6]} 19... Qh4 {[%clk 0:02:28.3]} 20. Bxf5 {[%clk 0:02:20.6]} 20... Bxf5
{[%clk 0:02:26.7]} 21. Nd4 {[%clk 0:02:18.9]} 21... Nxd4 {[%clk 0:02:25.2]} 22.
Bxd4 {[%clk 0:02:17.1]} 22... Be4 {[%clk 0:02:24.2]} 23. g3 {[%clk 0:01:58.6]}
23... Qh3 {[%clk 0:02:21.4]} 24. Qe2 {[%clk 0:01:55.3]} 24... Qf5 {[%clk
0:02:19.9]} 25. Qd2 {[%clk 0:01:52.1]} 25... h5 {[%clk 0:02:09]} 26. Rxc8 {[%clk
0:01:44.7]} 26... Rxc8 {[%clk 0:02:07.6]} 27. Rc1 {[%clk 0:01:44.6]} 27... Rc4
{[%clk 0:02:07.2]} 28. Rxc4 {[%clk 0:01:43.6]} 28... dxc4 {[%clk 0:02:08.1]} 29.
Bf2 {[%clk 0:01:40.4]} 29... Bd5 {[%clk 0:02:07.8]} 30. Qe1 {[%clk 0:01:24.3]}
30... Qd3 {[%clk 0:02:06.1]} 31. Be3 {[%clk 0:01:21.3]} 31... Qe4 {[%clk
0:02:03.4]} 0-1